Cogmind - Beta 13 @@@ ROGUE MODE // 2024.04.02 @ 22:09:34 Player: ivanmixo Result: Self-destructed Performance ------------- Evolutions (2) 1000 Regions Visited (3) 600 Robots Destroyed (77) 385 Value Destroyed (2276) 2276 Prototype IDs (0) 0 Alien Tech Used (0) 0 Bonus (225) 225 TOTAL SCORE: 4486 Bonus ------- High Alert Combat Kills 225 Cogmind --------- Core Integrity 246/550 Matter 300/300 Energy 250/250 System Corruption 10% Temperature Cool (0) Movement Walking (120) Location -8/Materials Parts ------- > --- POWER (1) -------- Ion Engine > --- PROPULSION (3) --- Improved Carbon-fiber Leg Improved Carbon-fiber Leg > --- UTILITY (4) ------ Large Storage Unit > --- WEAPON (3) ------- Light Assault Rifle Improved Light Cannon > --- INVENTORY (15) --- Ion Engine Ion Engine Advanced Treads Lightning Gun Lightning Gun Lightning Gun Lightning Gun Beam Rifle Mining Laser Heavy Flail Peak State ------------ > --- POWER ------------ Ion Engine > --- PROPULSION ------- Improved Carbon-fiber Leg Improved Carbon-fiber Leg Improved Carbon-fiber Leg > --- UTILITY ---------- Large Storage Unit Shield Generator Shield Generator Shield Generator > --- WEAPON ----------- Beam Rifle Particle Gun Light Assault Rifle > --- INVENTORY -------- Ion Engine Ion Engine Light Nuclear Core Advanced Treads Advanced Treads Improved Carbon-fiber Leg Lightning Gun Lightning Gun Lightning Gun Lightning Gun Mining Laser Heavy Flail [Rating: 28] Favorites ----------- Power Ion Engine Engine Ion Engine Power Core Light Nuclear Core Propulsion Advanced Treads Treads Advanced Treads Leg Aluminum Leg Wheel Wheel Utility Medium Armor Plating Device Shield Generator Storage Large Storage Unit Processor Targeting Computer Protection Medium Armor Plating Weapon Particle Gun Energy Gun Particle Gun Ballistic Gun Light Assault Rifle Ballistic Cannon Improved Light Cannon Launcher Grenade Launcher Special Weapon Mining Laser Impact Weapon Heavy Flail Build | -11 -10 -9 -8 ------- Run | Yrd Mat Mat Mat Slots Evolved 4 | . . 2 2 Power . | . . . . Propulsion 1 | . . . 1 Utility 2 | . . 2 . Weapon 1 | . . . 1 Parts Attached 71 | 9 12 23 27 Power 9 | 2 3 1 3 Engine 8 | 2 3 1 2 Core 1 | . . . 1 Reactor . | . . . . Propulsion 18 | 4 2 3 9 Treads 6 | . . 2 4 Leg 10 | 2 2 1 5 Wheel 2 | 2 . . . Hover . | . . . . Flight . | . . . . Utility 16 | 1 3 6 6 Device 7 | . 1 1 5 Storage 2 | 1 1 . . Processor 1 | . 1 . . Hackware . | . . . . Protection 6 | . . 5 1 Artifact . | . . . . Weapon 28 | 2 4 13 9 Energy Gun 9 | 1 1 3 4 Energy Cannon . | . . . . Ballistic Gun 5 | 1 1 . 3 Ballistic Cannon 8 | . 2 5 1 Launcher 4 | . . 4 . Special Weapon 1 | . . 1 . Impact Weapon 1 | . . . 1 Slashing Weapon . | . . . . Piercing Weapon . | . . . . Special Melee Weapon . | . . . . Unidentified Prototypes . | . . . . Parts Lost 22 | . 1 2 19 Power 2 | . . . 2 Propulsion 6 | . 1 . 5 Utility 9 | . . 1 8 Weapon 5 | . . 1 4 Highest Loss Streak 8 | . 1 2 8 To Critical Strikes 1 | . . . 1 Average Slot Usage (%) 94 | . 98 99 82 Engine 10 | . 14 11 7 Treads 9 | . . 11 13 Leg 9 | . 13 10 7 Wheel 3 | . 14 . . Device 11 | . 8 11 14 Storage 12 | . 18 11 9 Protection 12 | . . 21 5 Energy Gun 11 | . 9 9 15 Ballistic Gun 2 | . 4 . 3 Ballistic Cannon 9 | . 13 10 4 Naked Turns . | . . . . Heaviest Build 53 | 14 34 51 53 Greatest Support 66 | 26 26 44 66 Greatest Overweight (x) 3 | 2 3 2 1 Average Overweight (x) . | . 1 1 . Largest Inventory Capacity 15 | 8 15 15 15 Average Capacity 14 | 7 14 15 15 Most Carried 15 | 2 15 15 15 Average Carried 11 | . 9 13 9 Final Capacity 15 | 8 15 15 15 Final Carried 15 | 2 15 13 10 Class Distribution -------------------- 77% | Mutant 22% | Tank Dominant Class ---------------- Mutant | -10/Materials Mutant | -9/Materials Tank | -8/Materials Resources | -11 -10 -9 -8 ----------- Run | Yrd Mat Mat Mat Matter Collected 1561 | 198 342 500 521 Remotely . | . . . . Salvage Created 2061 | . 427 827 807 Parts 119 | . 24 68 27 Haulers Intercepted . | . . . . Recyclers Shooed 3 | . . 2 1 Parts Field Recycled . | . . . . Retrieved Matter . | . . . . Parts Self-Destructed . | . . . . Prevented . | . . . . Kills | -11 -10 -9 -8 ------- Run | Yrd Mat Mat Mat Combat Hostiles Destroyed 60 | . 12 25 23 Melee 2 | . . . 2 Guns 22 | . 7 3 12 Cannons 18 | . 5 6 7 AOE 16 | . . 16 . Classes Destroyed 13 | . 3 7 3 Worker 5 | . . 3 2 Builder 2 | . . 2 . Tunneler 1 | . . 1 . Recycler 2 | . . 2 . Mechanic 1 | . . 1 . Operator 1 | . . 1 . Watcher 5 | . 2 2 1 Swarmer 16 | . 3 8 5 Grunt 33 | . 9 13 11 Brawler 1 | . . . 1 Duelist 1 | . . . 1 Sentry 6 | . . 4 2 Hunter 3 | . . . 3 Best Kill Streak 11 | . 4 11 4 Combat Bots Only 8 | . 3 8 4 Max Kills in Single Turn 4 | . 2 4 1 Gunslinging 1 | . 1 . . Exploded 3 | . . 3 . Melee 1 | . . . 1 Uniques/NPCs Destroyed . | . . . . Combat | -11 -10 -9 -8 -------- Run | Yrd Mat Mat Mat Hostile Shots Fired 384 | . 54 89 241 Missed 100 | . 12 29 59 Damage Taken 3481 | . 376 498 2607 Core 412 | . 54 54 304 Absorbed by Shields 670 | . 90 191 389 Core Remaining (%) 88 | 100 78 86 . Volleys Fired 211 | . 36 56 119 Largest 3 | . 2 2 3 Hottest 169 | . 100 130 169 Shots Fired 369 | . 72 100 197 Gun 220 | . 46 43 131 Cannon 132 | . 26 40 66 Launcher 14 | . . 14 . Special 3 | . . 3 . Kinetic 183 | . 39 40 104 Thermal 172 | . 33 46 93 Explosive 14 | . . 14 . Electromagnetic . | . . . . Robot Hit Streak 11 | . 6 6 11 Robot Miss Streak 8 | . 5 8 5 Penetration Max . | . . . . Secondary Targets 4 | . 3 . 1 Max Gunslinging Chain 1 | . 1 . 1 Shots Hit Robots 231 | . 37 51 143 Core Hits 123 | . 20 56 47 Critical Kills . | . . . . Critical Parts Destroyed 1 | . . . 1 Critical Strikes 19 | . 4 5 10 Burn 13 | . 4 2 7 Blast 5 | . . 3 2 Smash 1 | . . . 1 Melee Attacks 8 | . . . 8 Impact 8 | . . . 8 Slashing . | . . . . Piercing . | . . . . Sneak Attacks . | . . . . Combat Hostiles . | . . . . Follow-up Attacks . | . . . . Damage Inflicted 5182 | . 608 2204 2370 Guns 1938 | . 335 428 1175 Cannons 1722 | . 273 525 924 Explosions 1242 | . . 1242 . Melee 261 | . . . 261 Ramming 19 | . . 9 10 Kinetic 1993 | . 369 525 1099 Thermal 1667 | . 239 428 1000 Explosive 1242 | . . 1242 . Electromagnetic . | . . . . Impact 261 | . . . 261 Slashing . | . . . . Piercing . | . . . . Highest Corruption 10 | . . . 10 Average Corruption 9 | . . . 9 Corruption Purged . | . . . . Corruption Blocked . | . . . . Effects 1 | . . . 1 Parts Rejected 1 | . . . 1 Overload Shots . | . . . . Overflow Damage 84 | . . 50 34 Projectiles 3 | . . 3 . Explosions 47 | . . 47 . Melee 34 | . . . 34 Knockbacks 27 | . 2 7 18 Impact 2 | . . . 2 Kinetic 23 | . 2 6 15 Secondary 2 | . . 1 1 Self-Inflicted Damage 71 | . . 71 . Shots 2 | . . 2 . Rammed 4 | . . 3 1 Targets Rammed 4 | . . 3 1 Kicked . | . . . . Crushed . | . . . . Highest Temperature 486 | . 366 431 486 Average Temperature 118 | . 84 116 134 Received Heat Transfer 1008 | . 134 135 739 Effects 7 | . . 2 5 Shutdowns 2 | . . . 2 Energy Bleed 2 | . . 1 1 Interference 1 | . . 1 . Short Circuit 1 | . . . 1 Damage (minor) 1 | . . . 1 Siege Activations . | . . . . Robots Corrupted . | . . . . Combat Hostiles . | . . . . Parts Fried . | . . . . Impact Corruptions 1 | . . . 1 Robots Melted 2 | . . . 2 Combat Hostiles 2 | . . . 2 Parts Melted 4 | . . 2 2 Heat Transferred 5217 | . 999 1184 3034 Parts Sabotaged . | . . . . Parts Stolen . | . . . . Parts Stripped . | . . . . Power Chain Reactions . | . . . . Alert | -11 -10 -9 -8 ------- Run | Yrd Mat Mat Mat Peak Influence 652 | . 212 652 576 Initial 228 | . . 20 228 Average 286 | . 75 337 391 Maximum Alert Level 2 | . 1 2 2 Low Security (%) 42 | 100 92 42 . Level 1 17 | . 7 2 52 Level 2 39 | . . 55 47 Level 3 . | . . . . Level 4 . | . . . . Level 5 . | . . . . High Security . | . . . . Max Security . | . . . . Squads Dispatched 12 | . 3 1 8 Investigation 2 | . 2 . . Extermination . | . . . . Reinforcement 3 | . 1 1 1 Assault . | . . . . Garrison 7 | . . . 7 Intercept . | . . . . Searches Triggered . | . . . . Construction Impeded . | . . . . Haulers Reinforced . | . . . . Active Scanning Responses . | . . . . Cargo Convoy Interrupts . | . . . . Stealth | -11 -10 -9 -8 --------- Run | Yrd Mat Mat Mat Distress Signals 8 | . 2 4 2 Communications Jammed . | . . . . Distress Signals . | . . . . Times Spotted 91 | . 15 37 39 Peak Tracking Total 11 | . 4 11 5 Tactical Retreats 4 | . . 2 2 Traps | -11 -10 -9 -8 ------- Run | Yrd Mat Mat Mat Traps Triggered 2 | . 2 . . Indirectly . | . . . . Trap Hack Attempts . | . . . . Triggered . | . . . . Disarmed . | . . . . Reprogrammed . | . . . . Reused . | . . . . Traps Extracted . | . . . . Installed . | . . . . Triggered . | . . . . Machines | -11 -10 -9 -8 ---------- Run | Yrd Mat Mat Mat Machines Disabled 11 | . . 6 5 Max in Single Turn 2 | . . 2 1 Machines Repaired . | . . . . Machines Dismantled . | . . . . Machines Sabotaged . | . . . . Overloaded Fab Kills . | . . . . Hacking | -11 -10 -9 -8 --------- Run | Yrd Mat Mat Mat Machines Accessed 5 | . 3 2 . Terminals 5 | . 3 2 . Fabricators . | . . . . Repair Stations . | . . . . Recycling Units . | . . . . Scanalyzers . | . . . . Garrison Access . | . . . . Total Hacks 9 | . 6 3 . Successful 4 | . 3 1 . Failed 5 | . 3 2 . Catastrophic 4 | . 3 1 . Database Lockouts . | . . . . Manual 9 | . 6 3 . Terminals 9 | . 6 3 . Fabricators . | . . . . Repair Stations . | . . . . Recycling Units . | . . . . Scanalyzers . | . . . . Garrison Access . | . . . . Terminal Hacks 4 | . 3 1 . Alert Level 2 | . 1 1 . Unreport Threat 1 | . 1 . . Recall Investigation 1 | . 1 . . Fabricator Hacks . | . . . . Repair Station Hacks . | . . . . Recycling Unit Hacks . | . . . . Scanalyzer . | . . . . Garrison Access Hacks . | . . . . Unauthorized Hacks . | . . . . Terminals . | . . . . Fabricators . | . . . . Repair Stations . | . . . . Recycling Units . | . . . . Scanalyzers . | . . . . Garrison Access . | . . . . Data Cores Recovered . | . . . . Used . | . . . . Hacking Detections 3 | . 2 1 . Full Trace Events 1 | . 1 . . Feedback Events . | . . . . Feedback Blocked . | . . . . Robot Schematics Acquired . | . . . . Robots Built . | . . . . Authchips . | . . . . Time . | . . . . Total Robot Build Rating . | . . . . Part Schematics Acquired . | . . . . Parts Built . | . . . . Authchips . | . . . . Time . | . . . . Total Part Build Rating . | . . . . Parts Repaired . | . . . . Time . | . . . . Parts Recycled . | . . . . Recycled Matter . | . . . . Retrieved Matter . | . . . . Retrieved Components . | . . . . Parts Scanalyzed . | . . . . Part Schematics Acquired . | . . . . Parts Damaged . | . . . . Bothacking | -11 -10 -9 -8 ------------ Run | Yrd Mat Mat Mat Used RIF Installer . | . . . . Robots Hacked . | . . . . Non-combat . | . . . . Combat . | . . . . Robot Hacks Applied . | . . . . Relay Couplers Released . | . . . . Fabnet Peak Effective % . | . . . . Robots Rewired . | . . . . Allies Hacked . | . . . . Hacks Repelled . | . . . . Allies | -11 -10 -9 -8 -------- Run | Yrd Mat Mat Mat Total Allies . | . . . . Largest Group . | . . . . Highest-Rated Group . | . . . . Highest-Rated Ally . | . . . . Total Orders . | . . . . Ally Attacks . | . . . . Total Damage . | . . . . Kills . | . . . . Allies Corrupted . | . . . . Allies Melted . | . . . . Intel | -11 -10 -9 -8 ------- Run | Yrd Mat Mat Mat Robot Analysis Total . | . . . . Derelict Logs Recovered . | . . . . Drone Launches . | . . . . Drone Recoveries . | . . . . Exploration | -11 -10 -9 -8 ------------- Run | Yrd Mat Mat Mat Turns Passed 3111 | 65 698 1453 895 Spaces Moved 1250 | 48 398 502 302 Core 14 | 14 . . . Treads 492 | . . 287 205 Legs 460 | 2 146 215 97 Wheels 284 | 32 252 . . Hover . | . . . . Flight . | . . . . Fastest Speed 50 | 50 90 190 120 Average Speed 183 | 100 137 239 162 Slowest Speed 330 | 150 330 305 225 Overloaded Moves . | . . . . Propulsion Burnouts . | . . . . Robots Hopped . | . . . . Cave-ins Triggered . | . . . . Exploration Rate (%) 37 | 4 71 55 20 Regions Visited 3 Branch Regions . Pre-discovered Areas . | . . . . Known Exits Taken . | . . . . Unknown Exits Taken 3 | 1 1 1 . Scrap Searched . | . . . . Spaces Dug 3 | . . 3 . Terrain Destroyed 78 | . . 77 1 Melee . | . . . . Projectile 5 | . . 4 1 AOE 73 | . . 73 . Terrain Rammed . | . . . . Walls Destroyed . | . . . . Machines Disabled . | . . . . Actions | -11 -10 -9 -8 --------- Run | Yrd Mat Mat Mat Total 1710 | 61 480 644 525 Wait 89 | . 8 35 46 Move 1247 | 47 397 501 302 Hop . | . . . . Pick Up 37 | 1 15 8 13 Fast Attach 26 | 8 7 5 6 Attach 32 | . 2 10 20 Detach 20 | 2 5 7 6 Swap 13 | 1 3 8 1 Drop 23 | 2 7 11 3 Fire 211 | . 36 56 119 Melee 8 | . . . 8 Ram . | . . . . Kick . | . . . . Crush 4 | . . 3 1 Escape Stasis . | . . . . Rewire . | . . . . Trap . | . . . . Miscellaneous . | . . . . Route ------- -11/Scrapyard -10/Materials (discovered 4 exits: *Mat x3 / [*Min]) -9/Materials (discovered 3 exits: [*Mat] / [*Min] / [*Sto]) -8/Materials History --------- Turn | Location | Event 15 | -11/Scrapyard | Discovered new exit (range 15) 66 | -11/Scrapyard | Entered Materials 271 | -10/Materials | Discovered new exit (range 15) 332 | -10/Materials | Build established: Mutant 466 | -10/Materials | Discovered new exit (range 15) 533 | -10/Materials | Discovered new exit (range 14) 720 | -10/Materials | Discovered new exit (range 16) 764 | -10/Materials | Entered another Materials area 764 | -9/Materials | Evolved 2 slots: Utility x2 1265 | -9/Materials | Discovered new exit (range 12) 1406 | -9/Materials | Destroyed 8 combat bots 1551 | -9/Materials | Discovered new exit (range 3) 1771 | -9/Materials | Discovered new exit (range 10) 2217 | -9/Materials | Entered another Materials area 2217 | -8/Materials | Evolved 2 slots: Propulsion x1, Weapon x1 2300 | -8/Materials | Garrison activated, responded to threat 2522 | -8/Materials | Build established: Tank 2556 | -8/Materials | Lost 3 parts (1p1n1u) 2570 | -8/Materials | Garrison activated, responded to threat 2698 | -8/Materials | Garrison activated, responded to threat 2714 | -8/Materials | Lost 5 parts (1n2u2w) 3010 | -8/Materials | Garrison activated, responded to threat 3053 | -8/Materials | System corruption reached 10% 3081 | -8/Materials | Core integrity fell below 50% 3083 | -8/Materials | Lost 8 parts (1p3n2u2w) 3112 | -8/Materials | Self-destructed Last Messages --------------- 03080_ H-55 Commando knocked back. 03081_ K-01 Serf collects debris. 03086_ Acquired 39 matter. 03089_ K-01 Serf collects debris. 03089_ Penetrated by Slug. 03090_ H-55 Commando knocked back. 03092_ Penetrated by Slug. 03093_ H-55 Commando destroyed. 03097_ A-02 Transporter suffers critical hit (Burn). 03098_ G-47 Trooper destroyed. 03100_ K-01 Serf collects debris. 03101_ Acquired 36 matter. 03103_ K-01 Serf collects debris. 03104_ Acquired Adv. Treads. 03105_ Acquired 5 matter. 03108_ K-01 Serf collects debris. 03110_ Y-45 Defender emerges from the garrison. 03111_ K-01 Serf collects debris. Map ----- +----------------------------------------------------+ | ????????????????????????????????# # # # | | ????????????????????????????????# # # # | | ????????????????????????????????# / # # ! !# | | ??????????????????????????############## # # | | ??????????????????????????# # # % # | | ??????????????????????????# """ """ [ # ##+##### | | ??????????????????????????# """ """ # #???? | | ??????????????????????????# """ """ # #??? | | ??????????????????????????# # #??? | | ??????????????????????? ? #######+###### ### | | ??????????????????????? ? ???# ^ % % # " | | ?????????????????????## ##?# / + " | | ?????????????????????# w ??# % # " | | ?????????????????????# ??# """ ^" %" # | | ?????????????????????# T ??# """ """ """ #? | | ?????????????????????? ??# """ """ ""% #?# | | ?????????????????????? ??# "" """% ""% ### | | ??????????????????????# #??# ^ % % ""# | | ??????????????????????# #??# % % %""# | | ??????????????????????# #??# """ "" T"# | | ??????????????????????# #??# """ """ ""# | | ??????????????????????# #??# ""% """ ""# | | ??????????????????????# #??# """ """ ### | | ?????????? ############ *#### % ### | | ????????? %=* " ## | | ????????? =[@%o | | ??????????? """ "" %""" * "" | | ?????????????"" """ k"G" a a | | ???????????????? """ Y" " u ## | | ??????????????? a k kY % ############# | | ?????????????? w %= #???????????# | | ?????????????##### ######+#### #???????????# | | ?????????????????# ????? ???# #???????????# | | ?????????????????# ????? ????# #???????????# | | ?????????????????# ???????????# #???????????# | | ?????????????????# ???????????# #???????????## | | ?????????????????# ???????????# #????????????? | | ?????????????????# ????????????# #????????????? | | ?????????????????# ?????????????# ?????????????? | | ?????????????????#??????????????? ?????????????? | | ?????????????????????????????????????????????????? | | ?????????????????????????????????????????????????? | | ?????????????????????????????????????????????????? | | ?????????????????????????????????????????????????? | | ?????????????????????????????????????????????????? | | ?????????????????????????????????????????????????? | | ?????????????????????????????????????????????????? | | ?????????????????????????????????????????????????? | | ?????????????????????????????????????????????????? | | ?????????????????????????????????????????????????? | +----------------------------------------------------+ Best States ------------- Heat Dissipation 41 Energy Generation 14 Energy Capacity 265 Matter Stores 300 Matter Capacity 300 Sight Range 16 Terrain Scan Density 10 Armor Coverage 450 Evasion (%) 55 Targeting Accuracy 5 Recoil Reduction 3 Item Schematics ----------------- None Robot Schematics ------------------ None Fabricated ------------ Nothing Alien Tech Used ----------------- None Achievements -------------- System Compromised Troublemaker Challenges ------------ None Game ------ Seed SmallMyomerLog Manual? 0 Play Time 00:36:09 Cumulative 4.3 hours Start 2024.04.02 @ 18:52:48 End 2024.04.02 @ 22:09:34 Sessions 3 Manual Loads 0 Difficulty Rogue Special Mode None Game No. 6 Rogue 6 Adventurer 0 Explorer 0 Win Type - Total 0 Types 0/0/0/0/0/0/0/0/0 Lore% 1 Gallery% 10 Achievement% 8 Wizard Run 0 Options --------- Layout 1 ASCII 0 Keyboard 0 Movement Numpad Keybinds 0 Fullscreen 2 Font 24/Smallcaps Map View 50x35 Zoom Use 0% Tactical HUD 1 Map Filters NONE Filters NONE Steam 1 RUN: 8e09379d-ab0d-4115-bf1c-45eec95e1034